bitfinex/quotes_BTCUSD_20220109
["timestamp","ask_amount","ask_price","bid_price","bid_amount"]
[1641756412419,0.00016286,42488.0,42481.0,0.07583852]
[1641756412821,0.00016285,42485.0,42482.0,0.26958826]
[1641756413222,0.00016285,42485.0,42481.0,0.07583852]
[1641756413624,0.00016285,42485.0,42482.0,0.29305165]
[1641756413822,0.00016285,42486.0,42482.0,0.29305165]
[1641756414055,0.00016285,42486.0,42484.0,0.07536852]
[1641756414253,0.25055768,42486.0,42484.0,0.07536852]
[1641756414453,0.00125352,42494.0,42484.0,0.07536852]
[1641756415053,0.00016286,42487.0,42484.0,0.07536852]
[1641756415453,0.32503641,42487.0,42484.0,0.07536852]
[1641756415654,0.30003641,42487.0,42484.0,0.07536852]
[1641756415854,0.29975291,42487.0,42484.0,0.07536852]
[1641756416055,0.29975291,42487.0,42479.0,0.01868]
[1641756416458,0.05,42486.0,42469.0,0.64136184]
[1641756416658,0.0472,42485.0,42470.0,0.1818197]
[1641756416857,0.24754,42485.0,42469.0,0.45906275]
[1641756417059,0.28447368,42477.0,42469.0,0.45860275]
[1641756417459,0.28447368,42477.0,42472.0,0.07536852]
[1641756417914,0.10607335,42482.0,42476.0,0.07536852]
[1641756418115,0.20034,42485.0,42474.0,0.00126687]
[1641756418615,0.20034,42485.0,42473.0,0.25769764]
[1641756418814,0.05887,42483.0,42473.0,0.25769764]
[1641756419013,0.24164539,42481.0,42472.0,0.07536852]
[1641756419415,0.24164539,42481.0,42477.0,0.00012235]
[1641756419614,0.0650354,42481.0,42477.0,0.00012235]
[1641756420614,0.0650354,42481.0,42477.0,0.00021309]
[1641756421415,0.0472,42487.0,42477.0,0.00021309]
[1641756421662,0.0472,42487.0,42477.0,0.00042618]
[1641756421861,0.117762,42480.0,42477.0,0.00021309]
[1641756422261,0.05888,42481.0,42477.0,0.00021309]
[1641756422465,1.19171249,42478.0,42477.0,0.00021309]
[1641756422661,0.84171249,42478.0,42477.0,0.00021309]
[1641756422861,0.84171249,42478.0,42476.0,0.0002131]
[1641756423862,0.84171249,42478.0,42475.0,0.00020897]
[1641756424063,0.0472,42477.0,42475.0,0.00020897]
[1641756424262,0.04849159,42477.0,42475.0,0.00020897]
[1641756424861,0.39623499,42477.0,42475.0,0.00020897]
[1641756425067,0.117776,42476.0,42474.0,0.00020593]
[1641756425312,1.1972,42475.0,42474.0,0.00020593]
[1641756426106,1.1972,42475.0,42473.0,0.00020593]
[1641756426606,1.3141766,42475.0,42473.0,0.00020593]
[1641756427007,1.1964666,42475.0,42473.0,0.00020593]
[1641756427207,1.1964666,42475.0,42472.0,0.00020594]
[1641756428210,1.1964666,42475.0,42471.0,0.00020608]
[1641756428211,0.047265,42475.0,42471.0,0.00020608]
[1641756428414,6.5e-05,42475.0,42474.0,0.07536852]
[1641756428711,6.5e-05,42475.0,42474.0,0.35593783]
[1641756429161,0.16616651,42494.0,42479.0,0.82971091]
[1641756429361,0.30450992,42482.0,42479.0,0.82971091]
[1641756429562,3.17735495,42491.0,42480.0,0.07536852]
[1641756429763,0.00014965,42492.0,42480.0,0.3510517]
[1641756430172,0.00014965,42492.0,42480.0,0.7355987]
[1641756430365,0.00014965,42492.0,42480.0,0.8532817]
[1641756430566,0.08564969,42497.0,42491.0,0.07658038]
[1641756430764,0.08564969,42497.0,42491.0,0.07536852]
[1641756430964,0.08564969,42497.0,42488.0,0.338861]
[1641756431264,0.08564969,42497.0,42495.0,0.07536852]
[1641756431867,0.08564969,42497.0,42496.0,0.32359277]
[1641756432063,0.08564969,42497.0,42495.0,0.07536852]
[1641756432264,0.0003,42498.0,42495.0,0.07036852]
[1641756432911,0.0003,42498.0,42496.0,0.26914931]
[1641756433819,0.0004,42503.0,42496.0,0.26914931]
[1641756433820,0.2044,42509.0,42500.0,0.4]
[1641756434010,0.2044,42509.0,42498.0,0.13]
[1641756434011,0.0044,42509.0,42504.0,0.04796124]
[1641756434209,0.0044,42509.0,42506.0,0.00125999]
[1641756434409,0.0044,42509.0,42507.0,0.384547]
[1641756434812,0.0044,42509.0,42499.0,0.338861]
[1641756435013,0.0003,42510.0,42496.0,0.0012798]
[1641756435014,0.20046,42510.0,42496.0,0.0012798]
[1641756435215,0.338861,42509.0,42490.0,0.04666852]
[1641756435411,0.0434,42509.0,42491.0,0.31953655]
[1641756435611,0.30303043,42503.0,42494.0,0.05434]
[1641756435812,0.35590437,42505.0,42496.0,0.04666852]
[1641756436113,0.35590437,42505.0,42496.0,0.04166852]
[1641756436310,0.35590437,42505.0,42497.0,0.338861]
[1641756436555,0.35090437,42505.0,42497.0,0.33838968]
[1641756436758,0.058845,42501.0,42494.0,0.04934]
[1641756436957,0.76965345,42495.0,42494.0,0.04934]
[1641756437158,0.951,42500.0,42499.0,0.00012277]
[1641756437356,0.201,42500.0,42499.0,0.00012277]
[1641756437557,0.00126436,42501.0,42499.0,0.00012277]
[1641756437957,0.11895437,42501.0,42499.0,0.00012277]
[1641756438258,1.00586734,42500.0,42497.0,0.00021304]
[1641756438457,1.15586734,42500.0,42497.0,0.00021304]
[1641756438658,0.0434,42499.0,42497.0,0.00021304]
[1641756439057,0.102256,42499.0,42497.0,0.00021304]
[1641756439258,0.30615859,42487.0,42486.0,0.338861]
[1641756439460,0.34931204,42493.0,42485.0,0.08638]
[1641756439659,0.00127759,42494.0,42485.0,0.08638]
[1641756439959,0.00127759,42494.0,42485.0,0.12758852]
[1641756440158,0.00127759,42494.0,42485.0,0.08638]
[1641756440422,0.00127759,42494.0,42487.0,0.3305992]
[1641756440618,0.26744889,42496.0,42487.0,0.3305992]
[1641756440818,0.26744889,42496.0,42490.0,0.39738007]
[1641756441118,0.26744889,42496.0,42490.0,0.66231756]
[1641756441317,0.0434,42499.0,42491.0,0.04120852]
[1641756441516,0.00126267,42501.0,42491.0,0.04120852]
[1641756441916,0.00126267,42501.0,42489.0,0.00125475]
[1641756442116,0.058848,42498.0,42489.0,0.00125475]
[1641756442318,0.00126267,42501.0,42489.0,0.00125475]
[1641756442818,0.23460019,42495.0,42489.0,0.00125475]
[1641756443022,0.23460019,42495.0,42489.0,0.00079475]
[1641756443520,0.23460019,42495.0,42492.0,0.04120852]
[1641756443718,0.23460019,42495.0,42491.0,0.04120852]
[1641756443918,0.00126267,42501.0,42491.0,0.04120852]
[1641756444363,0.058845,42500.0,42490.0,0.00020612]
[1641756444761,0.058845,42500.0,42494.0,0.00020611]
[1641756445568,0.27892348,42499.0,42494.0,0.00020611]
[1641756445765,0.27892348,42499.0,42495.0,0.00020611]
[1641756445965,0.25173969,42491.0,42489.0,0.04174938]
[1641756446568,0.25173969,42491.0,42485.0,0.00048162]
[1641756447166,0.25173969,42491.0,42485.0,0.04169014]
[1641756447569,0.44747829,42488.0,42480.0,0.04120852]
[1641756447814,0.05887172,42485.0,42475.0,0.04168032]
[1641756448011,0.11774344,42486.0,42475.0,0.04168032]
[1641756448410,0.0434,42485.0,42475.0,0.04168032]
[1641756448610,2.12502775,42484.0,42475.0,0.04168032]
[1641756448810,0.34925515,42484.0,42475.0,0.0004718]
[1641756449112,0.34925515,42484.0,42479.0,0.81898554]
[1641756449310,0.34925515,42484.0,42482.0,0.04120852]
[1641756450511,0.24126697,42485.0,42482.0,0.04120852]
[1641756450717,0.24126697,42485.0,42482.0,0.04242173]
[1641756450911,0.24126697,42485.0,42484.0,0.40393123]
[1641756451763,0.24126697,42485.0,42484.0,1.12543873]
[1641756451960,0.24126697,42485.0,42484.0,1.12668579]
[1641756452158,0.11676697,42485.0,42484.0,1.12668579]
[1641756452359,0.00025826,42491.0,42490.0,0.32827356]
[1641756452559,0.00025826,42491.0,42490.0,0.04242189]
[1641756452761,0.00025826,42491.0,42490.0,0.04120852]
[1641756454360,0.00015428,42493.0,42490.0,0.04120852]
[1641756455309,0.24793616,42491.0,42490.0,0.04120852]
[1641756455511,0.24793616,42491.0,42490.0,0.04074852]
[1641756456112,0.24793616,42491.0,42485.0,0.2821435]
[1641756456312,0.24793616,42491.0,42485.0,0.26766867]
[1641756456512,0.24793616,42491.0,42485.0,0.26802841]
[1641756456713,0.24,42493.0,42485.0,0.26802841]
[1641756456913,0.24,42493.0,42488.0,0.26144242]
[1641756456914,0.00014912,42490.0,42488.0,0.26144242]
[1641756457112,0.00014912,42490.0,42488.0,0.30219094]
[1641756457713,0.00014912,42490.0,42488.0,0.04074852]
[1641756457915,0.31643353,42489.0,42485.0,0.27041629]
[1641756458113,0.31643353,42489.0,42484.0,0.40393123]
[1641756458316,0.31643353,42489.0,42480.0,0.33600814]
[1641756458524,1.95679728,42487.0,42480.0,0.33600814]
[1641756458915,0.05886619,42485.0,42480.0,0.33600814]
[1641756459170,0.05886619,42485.0,42479.0,0.81898554]
[1641756459368,2.00679728,42487.0,42479.0,0.81898554]
[1641756459369,0.23614628,42483.0,42479.0,0.81898554]
[1641756459570,0.31960364,42480.0,42479.0,0.81898554]
[1641756460171,0.31960364,42480.0,42479.0,1.11885814]
[1641756460374,0.2004,42485.0,42479.0,1.11885814]
[1641756460974,0.2004,42485.0,42479.0,0.81898554]
[1641756461278,0.29189207,42480.0,42479.0,0.81898554]
[1641756461472,0.058869,42482.0,42479.0,0.81898554]
[1641756461672,0.058869,42482.0,42479.0,0.81852554]
[1641756462273,0.05893918,42484.0,42479.0,0.81852554]
[1641756462472,0.362632,42484.0,42479.0,0.81852554]
[1641756464013,0.30376562,42484.0,42479.0,0.81852554]
[1641756464812,0.30376562,42484.0,42479.0,0.81806554]
[1641756465214,0.11773927,42482.0,42479.0,0.81806554]
[1641756465615,0.41105926,42487.0,42479.0,0.81806554]
[1641756466013,0.0434,42487.0,42479.0,0.81806554]
[1641756466216,0.11774033,42486.0,42479.0,0.81806554]
[1641756466578,0.11774121,42482.0,42479.0,0.81806554]
[1641756466773,0.31208614,42480.0,42479.0,0.81806554]
[1641756467970,7.155e-05,42481.0,42479.0,0.81806554]
[1641756468777,7.155e-05,42481.0,42480.0,0.04028852]
[1641756468975,7.155e-05,42481.0,42479.0,1.1263315]
[1641756470320,7.155e-05,42481.0,42479.0,0.85835406]
[1641756470524,7.155e-05,42481.0,42479.0,0.81806554]
[1641756471824,0.05918284,42486.0,42479.0,0.81806554]
[1641756472222,0.05892458,42486.0,42479.0,0.81806554]
[1641756472422,0.05892458,42486.0,42480.0,0.27111011]
[1641756473121,0.05892458,42486.0,42479.0,0.81806554]
[1641756473822,0.05392458,42486.0,42479.0,0.81806554]
[1641756474662,0.05392458,42486.0,42480.0,0.26740373]
[1641756475162,0.05392458,42486.0,42479.0,0.81806554]
[1641756476567,0.058875,42482.0,42479.0,0.81806554]
[1641756477467,0.0434,42485.0,42479.0,0.81806554]
[1641756477812,2.0,42480.0,42479.0,0.81806554]
[1641756478812,2.117747,42480.0,42479.0,0.81806554]
[1641756479012,2.0,42480.0,42479.0,0.81806554]
[1641756479617,2.0,42480.0,42479.0,0.85835406]
[1641756480218,2.0,42480.0,42479.0,0.85789406]
[1641756481014,1.19788944,42480.0,42479.0,0.85789406]
[1641756481216,1.19788944,42480.0,42479.0,1.18652227]
[1641756481416,1.19788944,42480.0,42479.0,1.19615419]
[1641756481669,0.14528944,42480.0,42479.0,2.13359115]
[1641756481967,0.00025826,42486.0,42480.0,1.0]
[1641756482170,0.00025826,42486.0,42485.0,0.04109939]
[1641756482367,0.00025826,42486.0,42485.0,0.83080285]
[1641756482667,0.00025826,42486.0,42485.0,1.13974551]
[1641756482866,0.00014939,42490.0,42485.0,1.13583708]
[1641756483066,0.00014939,42490.0,42486.0,0.63662585]
[1641756483270,0.00014939,42490.0,42486.0,1.02117285]
[1641756483566,0.00014943,42490.0,42486.0,1.02117285]
[1641756483765,0.00014943,42490.0,42486.0,0.63662585]
[1641756484167,0.00014943,42490.0,42486.0,1.02117285]
[1641756485614,0.00014943,42490.0,42486.0,1.01657285]
[1641756486213,0.00014943,42490.0,42486.0,0.63202585]
[1641756486414,0.00014943,42490.0,42486.0,0.63156585]
[1641756486813,0.00014943,42490.0,42486.0,1.01611285]
[1641756487015,0.24006395,42487.0,42486.0,1.01611285]
[1641756487218,0.24006395,42487.0,42486.0,0.63156585]
[1641756487915,0.24006395,42487.0,42485.0,0.03092009]
[1641756488215,0.29891995,42487.0,42485.0,0.03092009]
[1641756488414,0.29891995,42487.0,42480.0,0.34120809]
[1641756488617,0.29891995,42487.0,42480.0,0.37212818]
[1641756489064,0.29891995,42487.0,42482.0,0.42046269]
[1641756489768,0.29891995,42487.0,42482.0,0.42000269]
[1641756490168,0.29891995,42487.0,42483.0,0.26955133]
[1641756490366,0.24006395,42487.0,42483.0,0.26955133]
[1641756490568,0.24006395,42487.0,42485.0,0.03092009]
[1641756490967,0.00059763,42493.0,42492.0,0.48469927]
[1641756491170,0.00059763,42493.0,42485.0,0.03092009]
[1641756491374,0.05900497,42490.0,42483.0,0.30047142]
[1641756491568,0.058857,42487.0,42483.0,0.30047142]
[1641756491966,6.855e-05,42486.0,42483.0,0.30047142]
[1641756492818,6.855e-05,42486.0,42483.0,0.30001142]
[1641756493219,6.855e-05,42486.0,42485.0,0.26655699]
[1641756493419,6.855e-05,42486.0,42485.0,0.2847793]
[1641756493919,6.855e-05,42486.0,42485.0,0.2833793]
[1641756494318,6.855e-05,42486.0,42483.0,0.03046009]
[1641756494519,6.855e-05,42486.0,42479.0,0.81930188]
[1641756494520,6.855e-05,42486.0,42479.0,0.84976197]
[1641756494721,6.855e-05,42486.0,42479.0,0.84852563]
[1641756494922,6.855e-05,42486.0,42479.0,0.81806554]
[1641756495120,6.855e-05,42486.0,42479.0,0.84852563]
[1641756495421,0.05886645,42483.0,42480.0,0.0002102]
[1641756495620,0.27609704,42482.0,42480.0,0.0002102]
[1641756495820,0.27109704,42482.0,42479.0,0.84827583]
[1641756496220,0.25609704,42482.0,42479.0,0.84827583]
[1641756496421,0.25198065,42485.0,42479.0,0.84848603]
[1641756496862,0.058865,42482.0,42479.0,0.84848603]
[1641756497064,0.0589327,42482.0,42479.0,0.84848603]
[1641756497263,6.77e-05,42482.0,42480.0,0.27169706]
[1641756497468,6.77e-05,42482.0,42480.0,0.26112246]
[1641756497667,6.77e-05,42482.0,42481.0,0.2694058]
[1641756498263,6.77e-05,42482.0,42479.0,0.84949375]
[1641756498464,6.77e-05,42482.0,42479.0,0.84827583]
[1641756499062,6.77e-05,42482.0,42479.0,0.84781583]
[1641756501521,6.77e-05,42482.0,42480.0,0.27031594]
[1641756501923,0.24006585,42485.0,42480.0,0.27031594]
[1641756502123,0.24006585,42485.0,42484.0,0.02975029]
[1641756502523,0.24006585,42485.0,42484.0,0.02475029]
[1641756503524,0.15236585,42485.0,42484.0,0.02475029]
[1641756503722,0.15236585,42485.0,42480.0,0.27031594]
[1641756503924,0.058861,42484.0,42479.0,0.81806554]
[1641756504166,0.15236585,42485.0,42482.0,0.02475029]
[1641756504568,1.15236585,42485.0,42482.0,0.02475029]
[1641756504968,1.27009685,42485.0,42482.0,0.02475029]
[1641756505168,1.15236585,42485.0,42482.0,0.02475029]
[1641756506971,6.499e-05,42484.0,42482.0,0.02475029]
[1641756507570,0.00014962,42486.0,42482.0,0.02475029]
[1641756507815,0.00014962,42486.0,42484.0,0.30097643]
[1641756508020,0.00014962,42486.0,42482.0,0.02475029]
[1641756508418,0.00014962,42486.0,42482.0,0.02429029]
[1641756508621,0.00014956,42487.0,42482.0,0.02429029]
[1641756509217,0.058863,42485.0,42482.0,0.02429029]
[1641756509816,0.058863,42485.0,42482.0,0.32429029]
[1641756511419,0.06072687,42493.0,42482.0,0.32429029]
[1641756511665,0.05886471,42488.0,42482.0,0.32382029]
[1641756511865,6.295e-05,42484.0,42483.0,0.02382029]
[1641756513668,0.0764,42496.0,42483.0,0.29802264]
[1641756513868,0.117713,42492.0,42483.0,0.29802264]
[1641756514065,0.058854,42490.0,42483.0,0.29802264]
[1641756514468,0.058854,42490.0,42489.0,0.02382029]
[1641756516314,2.45253774,42490.0,42489.0,0.02382029]
[1641756516515,2.51139868,42490.0,42489.0,0.02382029]
[1641756516920,2.45253774,42490.0,42489.0,0.02382029]
[1641756517116,0.058854,42490.0,42489.0,0.02382029]
[1641756517716,0.058854,42490.0,42489.0,0.02336029]
[1641756518118,0.298854,42490.0,42489.0,0.02336029]
[1641756520772,0.298854,42490.0,42489.0,0.02290029]
[1641756521973,0.135261,42496.0,42489.0,0.02290029]
[1641756522171,0.05885642,42495.0,42489.0,0.02290029]
[1641756522371,0.117719,42493.0,42489.0,0.02290029]
[1641756522815,0.117719,42493.0,42485.0,0.34399141]
[1641756523015,0.2609297,42491.0,42489.0,0.02290029]
[1641756523916,0.2609297,42491.0,42489.0,0.02244029]
[1641756524216,0.3197887,42491.0,42489.0,0.02244029]
[1641756526667,0.0016892,42497.0,42496.0,0.34852571]
[1641756526864,0.0016892,42497.0,42491.0,0.07687]
[1641756527063,0.0016892,42497.0,42495.0,0.02197029]
[1641756528964,0.0016892,42497.0,42495.0,0.28229654]
[1641756529164,0.0016892,42497.0,42496.0,0.27975722]
[1641756529568,8.92e-05,42497.0,42496.0,0.36186722]
[1641756529772,0.00036192,42507.0,42497.0,1.284547]
[1641756529966,0.00036192,42507.0,42506.0,0.02317349]
[1641756530419,0.00036192,42507.0,42506.0,0.70496293]
[1641756530620,0.00036192,42507.0,42506.0,0.71751495]
[1641756530920,0.0003,42513.0,42510.0,0.02326423]
[1641756531325,0.0001,42515.0,42510.0,0.15326423]
[1641756531523,0.0001,42515.0,42514.0,0.00127765]
[1641756531723,0.0001,42515.0,42514.0,0.40633537]
[1641756531922,0.0006,42519.0,42514.0,0.40633537]
[1641756532225,0.0006,42519.0,42514.0,0.00127765]
[1641756532424,0.0006,42519.0,42497.0,0.33947218]
[1641756532623,0.99379,42522.0,42508.0,0.02197029]
[1641756532822,0.96064251,42522.0,42509.0,0.13]
[1641756533124,0.96064251,42522.0,42519.0,0.3575279]
[1641756533324,0.0004,42523.0,42519.0,0.3575279]
[1641756533722,0.0004,42523.0,42519.0,0.3570039]
[1641756533926,0.0004,42527.0,42519.0,0.3570039]
[1641756534168,0.00015331,42523.0,42519.0,0.3570039]
[1641756534469,0.00978656,42529.0,42520.0,0.33947218]
[1641756534470,0.05396131,42525.0,42520.0,0.33947218]
[1641756534666,0.20046,42528.0,42523.0,0.00123642]
[1641756534867,0.00978656,42529.0,42523.0,0.00123642]
[1641756535167,0.00015331,42523.0,42520.0,0.33947218]
[1641756535368,0.00015331,42523.0,42514.0,0.02197029]
[1641756535666,0.00015331,42523.0,42520.0,0.33125655]
[1641756535868,0.05396031,42526.0,42520.0,0.33125655]
[1641756536266,0.05881509,42525.0,42520.0,0.33125655]
[1641756536471,0.05881509,42525.0,42517.0,0.00123625]
[1641756536666,0.25028,42528.0,42515.0,0.0012404]
[1641756537070,0.28069233,42528.0,42515.0,0.0012404]
[1641756537668,0.058811,42524.0,42515.0,0.44585556]
[1641756537915,0.058811,42524.0,42516.0,0.27012308]
[1641756538116,0.25,42525.0,42520.0,0.00124911]
[1641756538317,0.23069233,42528.0,42520.0,0.00124911]
[1641756538619,0.05890025,42525.0,42520.0,0.00124911]
[1641756538818,9.025e-05,42525.0,42520.0,0.00124911]
[1641756539416,0.00015266,42525.0,42520.0,0.00124911]
[1641756540017,0.00015266,42525.0,42520.0,0.2771312]
[1641756540216,0.00015266,42525.0,42524.0,0.37902088]
[1641756540419,0.00015266,42525.0,42524.0,0.66125754]
[1641756540618,0.00030532,42525.0,42524.0,0.37902088]
[1641756540817,0.2506931,42531.0,42521.0,0.29998311]
[1641756541021,0.058801,42531.0,42521.0,0.29998311]
[1641756541222,0.247642,42532.0,42521.0,0.29998311]
[1641756541423,0.45250014,42531.0,42514.0,0.000213]
[1641756541681,0.0471,42530.0,42512.0,0.00124621]
[1641756541874,0.20094,42520.0,42512.0,0.00124621]
[1641756542074,0.058817,42518.0,42512.0,0.00124621]
[1641756542272,0.0471,42521.0,42517.0,0.02197029]
[1641756542475,0.20183824,42532.0,42512.0,0.00124621]
[1641756542476,0.27997073,42525.0,42512.0,0.00124621]
[1641756542874,0.27997073,42525.0,42517.0,0.02197029]
[1641756543081,0.00076045,42538.0,42533.0,0.25970325]
[1641756543282,0.5892,42544.0,42543.0,1.01383727]
[1641756543476,0.5892,42544.0,42543.0,1.43992281]
[1641756543477,0.0003,42544.0,42543.0,1.43992281]
[1641756543875,0.0003,42544.0,42543.0,1.10517727]
[1641756544485,0.0005,42553.0,42544.0,1.15]
[1641756544677,0.0003,42565.0,42544.0,1.15]
[1641756544984,0.00058927,42581.0,42565.0,2.66347028]
[1641756545186,5.62083723,42583.0,42573.0,0.02499496]
[1641756545456,0.00983602,42596.0,42565.0,2.66347028]
[1641756545457,0.05297691,42602.0,42600.0,0.16248608]
[1641756545661,0.2229,42607.0,42600.0,0.16248608]
[1641756545662,0.0125734,42610.0,42607.0,0.10176272]
[1641756545851,1.23059025,42624.0,42617.0,4.87892464]
[1641756546048,0.03041227,42629.0,42622.0,0.0012384]
[1641756546256,0.03041227,42629.0,42623.0,0.04815906]
[1641756546454,0.00433978,42627.0,42624.0,0.7348879]
[1641756546653,0.00433978,42627.0,42617.0,4.94869464]
[1641756546654,0.09903587,42623.0,42619.0,3.34976837]
[1641756546959,0.03041227,42629.0,42622.0,0.00109247]
[1641756547151,0.03041227,42629.0,42624.0,0.003125]
[1641756547354,0.32460865,42628.0,42624.0,0.002095]
[1641756547751,0.32460865,42628.0,42624.0,0.001715]
[1641756547752,0.31960865,42628.0,42624.0,0.001715]
[1641756547953,0.31960865,42628.0,42626.0,0.00128501]
[1641756548151,0.03041227,42629.0,42627.0,0.00124081]
[1641756548552,0.03041227,42629.0,42627.0,0.00120053]
[1641756548950,0.03041227,42629.0,42627.0,0.00100053]
[1641756549168,0.29637672,42629.0,42627.0,0.00100053]
[1641756549368,0.29637672,42629.0,42627.0,0.00080053]
[1641756549576,0.03041227,42629.0,42627.0,0.00080053]
[1641756549769,0.03041227,42629.0,42625.0,0.07285609]
[1641756549770,0.32146621,42629.0,42625.0,0.07285609]
[1641756549969,0.21898572,42607.0,42600.0,0.13447669]
[1641756550176,1.48971879,42607.0,42606.0,0.10118868]
[1641756550569,1.48971879,42607.0,42606.0,8.68e-06]
[1641756550771,1.10055935,42607.0,42606.0,8.68e-06]
[1641756550972,1.04892435,42607.0,42606.0,8.68e-06]
[1641756551168,1.04892435,42607.0,42600.0,0.13447669]
[1641756551169,0.71941139,42607.0,42600.0,0.12948537]
[1641756551369,0.0999831,42604.0,42600.0,0.12948537]
[1641756551571,0.71941139,42607.0,42600.0,0.12948537]
[1641756551572,0.0999831,42602.0,42600.0,0.12948537]
[1641756551773,0.0999831,42602.0,42598.0,1.57686118]
[1641756551774,0.12948537,42600.0,42598.0,1.56024655]
[1641756551973,1.43076118,42598.0,42573.0,0.02156935]
[1641756552175,1.43076118,42598.0,42574.0,0.13458671]
[1641756552176,0.00128139,42596.0,42574.0,0.13458671]
[1641756552374,0.00128139,42596.0,42573.0,0.01656935]
[1641756552375,0.25774729,42580.0,42573.0,0.01656935]
[1641756552572,0.00129368,42590.0,42562.0,0.13462324]
[1641756552573,0.2975321,42573.0,42562.0,0.13462324]
[1641756552833,0.2975321,42573.0,42558.0,0.13463101]
[1641756552834,0.3446321,42573.0,42558.0,0.13463101]
[1641756553026,0.0471,42573.0,42558.0,0.13463101]
[1641756553226,0.0471,42573.0,42565.0,2.03399943]
[1641756553429,0.0421,42573.0,42565.0,2.03399943]
[1641756553630,0.00015168,42571.0,42565.0,2.03399943]
[1641756553834,0.00015168,42571.0,42566.0,0.384547]
[1641756554032,0.00060662,42578.0,42571.0,0.85]
[1641756554230,0.00060662,42578.0,42572.0,0.71956944]
[1641756554632,0.00060662,42578.0,42573.0,0.7490244]
[1641756554933,0.000619,42577.0,42575.0,1.247]
[1641756555131,1.43076118,42598.0,42578.0,1.247]
[1641756555331,1.42576118,42598.0,42580.0,1.247]
[1641756555532,1.42576118,42598.0,42589.0,0.1]
[1641756555734,0.00024689,42604.0,42598.0,0.17108747]
[1641756555931,0.00024689,42604.0,42603.0,0.25942423]
[1641756556136,0.00024689,42604.0,42603.0,0.64397123]
[1641756556332,0.02029725,42615.0,42603.0,0.64397123]
[1641756556575,0.02029725,42615.0,42604.0,0.33502244]
[1641756556779,0.02029725,42615.0,42605.0,0.384547]
[1641756556973,0.02029725,42615.0,42612.0,0.34198281]
[1641756557175,0.02029725,42615.0,42605.0,0.384547]
[1641756557176,0.02029725,42615.0,42613.0,0.384547]
[1641756557373,0.02029725,42615.0,42609.0,0.01424]
[1641756557580,0.02029725,42615.0,42610.0,0.384547]
[1641756557773,0.01029725,42615.0,42611.0,0.28991063]
[1641756558073,0.01029725,42615.0,42612.0,0.72746661]
[1641756558273,0.01029725,42615.0,42613.0,0.28295839]
[1641756558274,0.26029725,42615.0,42613.0,0.28295839]
[1641756558476,0.12499725,42615.0,42614.0,0.427747]
[1641756558873,0.12499725,42615.0,42614.0,0.7691056]
[1641756559074,0.12499725,42615.0,42614.0,1.2191056]
[1641756559276,0.12499725,42615.0,42614.0,1.09623568]
[1641756559975,0.12499725,42615.0,42614.0,1.54623568]
[1641756560176,0.1141806,42615.0,42614.0,1.09623568]
[1641756560423,0.1141806,42615.0,42614.0,0.75487708]
[1641756561024,0.1141806,42615.0,42614.0,1.30487708]
[1641756561232,0.000145,42617.0,42614.0,1.30487708]
[1641756561233,0.000145,42617.0,42615.0,1.15]
[1641756561426,0.000145,42617.0,42614.0,0.75487708]
[1641756561427,0.00057989,42623.0,42617.0,1.247135]
[1641756561626,0.06531,42626.0,42622.0,0.076106]
[1641756561826,0.03041227,42629.0,42626.0,0.6]
[1641756562027,0.03041227,42629.0,42628.0,1.284547]
[1641756562226,0.00374457,42636.0,42629.0,0.984547]
[1641756562424,0.19563524,42637.0,42631.0,0.9]
[1641756562624,0.00202941,42648.0,42633.0,1.15]
[1641756562835,0.00202941,42648.0,42637.0,0.09481]
[1641756563026,0.99802441,42650.0,42647.0,0.34563063]
[1641756563224,0.97302441,42650.0,42647.0,0.34063063]
[1641756563426,0.88812441,42650.0,42648.0,0.3845586]
[1641756563625,0.78822441,42650.0,42649.0,0.68847866]
[1641756563825,0.78822441,42650.0,42649.0,1.11622566]
[1641756563826,0.4438403,42650.0,42649.0,1.11622566]
[1641756564082,0.00169652,42676.0,42650.0,1.234547]
[1641756564276,0.0078453,42677.0,42666.0,0.34507705]
[1641756564476,0.0005,42681.0,42667.0,0.3413586]
[1641756564673,0.0213,42682.0,42673.0,0.32748079]
[1641756564874,9.18471683,42688.0,42673.0,0.32748079]
[1641756565075,9.18471683,42688.0,42670.0,0.0432]
[1641756565278,0.1696,42671.0,42654.0,0.0432]
[1641756565478,0.13341758,42671.0,42654.0,0.0432]
[1641756565874,0.13341758,42671.0,42647.0,0.13]
[1641756565875,0.0001,42662.0,42647.0,0.0432]
[1641756566077,0.28487196,42653.0,42647.0,0.0432]
[1641756566275,0.37410196,42653.0,42647.0,0.0432]
[1641756566478,0.37390196,42653.0,42642.0,1.247]
[1641756566674,0.37390196,42653.0,42644.0,1.247]
[1641756566675,0.08923,42653.0,42644.0,1.247]
[1641756566874,0.08923,42653.0,42649.0,0.34127033]
[1641756566875,0.08393,42653.0,42649.0,0.34127033]
[1641756567075,0.08393,42653.0,42638.0,0.05990373]
[1641756567076,0.08393,42653.0,42650.0,0.3413586]
[1641756567279,0.0001,42664.0,42639.0,0.3413586]
[1641756567476,0.00121039,42656.0,42640.0,0.00122232]
[1641756567675,0.24211574,42654.0,42641.0,0.41530353]
[1641756567924,0.14211574,42654.0,42642.0,0.3413586]
[1641756568127,0.33501923,42653.0,42638.0,0.3413586]
[1641756568320,0.00121566,42648.0,42638.0,0.3413586]
[1641756568522,0.23662168,42654.0,42638.0,0.3413586]
[1641756568724,0.00121177,42648.0,42638.0,0.3413586]
[1641756568921,0.01636177,42649.0,42636.0,0.02089]
[1641756569221,0.0999,42655.0,42641.0,0.00127601]
[1641756569422,0.0001,42666.0,42649.0,0.30207907]
[1641756569824,0.0001,42666.0,42650.0,0.3413586]
[1641756569825,0.39297889,42664.0,42650.0,0.3413586]
[1641756570022,0.3218018,42662.0,42650.0,0.3413586]
[1641756570423,0.0923849,42662.0,42654.0,0.00021094]
[1641756570629,0.01224469,42661.0,42654.0,0.00021094]
[1641756570923,0.20016,42658.0,42654.0,0.00021094]
[1641756571124,1.44304077,42655.0,42654.0,0.00021094]
[1641756571323,1.84389612,42655.0,42654.0,0.00021094]
[1641756571573,1.84389612,42655.0,42645.0,0.26039124]
[1641756571574,1.89389612,42655.0,42645.0,0.00084393]
[1641756571780,1.84389612,42655.0,42645.0,0.00084393]
[1641756571974,6.892e-05,42661.0,42651.0,0.1]
[1641756572175,6.892e-05,42661.0,42652.0,0.3194072]
[1641756572374,6.892e-05,42661.0,42647.0,0.00124535]
[1641756572574,6.892e-05,42661.0,42642.0,0.31170744]
[1641756572774,1.15,42660.0,42642.0,0.00125597]
[1641756572975,0.2677002,42643.0,42641.0,0.00084395]
[1641756573178,0.41850851,42648.0,42641.0,0.00084395]
[1641756573375,0.41730059,42648.0,42641.0,0.00084395]
[1641756573578,0.41730059,42648.0,42629.0,0.13448573]
[1641756573579,0.43978933,42634.0,42629.0,0.13448573]
[1641756573776,0.49899933,42634.0,42622.0,0.07449]
[1641756574176,0.0999,42630.0,42623.0,0.65840033]
[1641756574376,0.5002787,42634.0,42624.0,0.1]